bitfinex-derivatives/quotes_BTCF0:USTF0_20260214
["timestamp","ask_amount","ask_price","bid_price","bid_amount"]
[1771029224994,0.08901464,69009.0,69003.0,0.0145]
[1771029226293,0.07445464,69009.0,69003.0,0.0145]
[1771029226494,0.08901464,69009.0,69003.0,0.0145]
[1771029226686,0.07445464,69009.0,69003.0,0.0145]
[1771029226886,0.08901464,69009.0,69003.0,0.0145]
[1771029227185,0.07445464,69009.0,69003.0,0.0145]
[1771029227387,0.07445464,69009.0,69003.0,0.25969068]
[1771029228796,0.07445464,69009.0,69004.0,0.014499]
[1771029229192,0.07445464,69009.0,69005.0,0.014499]
[1771029229494,0.07245464,69009.0,69006.0,0.014499]
[1771029229690,0.07245464,69009.0,69005.0,0.014499]
[1771029229996,0.07245464,69009.0,69004.0,0.014499]
[1771029230191,0.07245464,69009.0,69005.0,0.016499]
[1771029230491,0.07245464,69009.0,69006.0,0.014499]
[1771029230898,6.4e-07,69009.0,69006.0,0.014499]
[1771029231197,6.4e-07,69009.0,69007.0,0.014499]
[1771029231993,6.4e-07,69009.0,69008.0,0.014499]
[1771029232297,6.4e-07,69009.0,69008.0,0.029059]
[1771029232500,0.01456,69019.0,69011.0,0.014498]
[1771029232698,0.07245117,69012.0,69011.0,0.029058]
[1771029232899,0.07245117,69012.0,69011.0,0.01456]
[1771029233800,0.07245117,69012.0,69009.0,0.029058]
[1771029234302,0.07245117,69012.0,69009.0,0.01456]
[1771029234901,0.07245117,69012.0,69009.0,0.033058]
[1771029235089,0.07245117,69012.0,69009.0,0.01856]
[1771029235289,0.06945117,69012.0,69009.0,0.033058]
[1771029235500,0.06945117,69012.0,69009.0,0.01856]
[1771029237302,0.06945117,69012.0,69009.0,0.033058]
[1771029237505,1.7e-07,69012.0,69011.0,0.014498]
[1771029237692,1.7e-07,69012.0,69009.0,0.004]
[1771029237896,1.7e-07,69012.0,69011.0,0.014498]
[1771029238398,0.145,69022.0,69008.0,0.014498]
[1771029238608,0.0869434,69016.0,69006.0,0.01456]
[1771029238901,0.1015034,69016.0,69006.0,0.01456]
[1771029239104,0.20839018,69014.0,69006.0,0.01456]
[1771029239409,0.003,69012.0,69006.0,0.029059]
[1771029239590,0.20839018,69014.0,69005.0,0.014499]
[1771029239795,0.20839018,69013.0,69005.0,0.014499]
[1771029240097,0.20839018,69015.0,69006.0,0.015499]
[1771029240301,0.01456,69014.0,69006.0,0.015499]
[1771029240701,0.22295018,69014.0,69006.0,0.015499]
[1771029241000,0.22295018,69014.0,69006.0,0.014499]
[1771029241201,0.22295018,69014.0,69006.0,0.001]
[1771029241401,0.014498,69012.0,69006.0,0.001]
[1771029241599,0.014498,69012.0,68989.0,0.9061553]
[1771029241600,0.19969427,69006.0,68989.0,0.9061553]
[1771029241803,0.19969427,68997.0,68987.0,0.01456]
[1771029242004,0.19969427,68997.0,68984.0,0.014504]
[1771029242005,0.014501,68999.0,68988.0,0.014503]
[1771029242207,0.01456,68998.0,68989.0,0.014503]
[1771029243204,0.01556,68998.0,68989.0,0.014503]
[1771029243408,0.01556,68998.0,68990.0,0.014502]
[1771029244206,0.01456,68998.0,68990.0,0.014502]
[1771029244505,0.01656,68998.0,68990.0,0.014502]
[1771029245602,0.145,69000.0,68990.0,0.014502]
[1771029245603,0.01456001,69000.0,68995.0,0.014501]
[1771029245805,0.01856,68998.0,68995.0,0.014501]
[1771029246003,0.01856,68998.0,68990.0,0.014502]
[1771029246307,0.01856,68998.0,68986.0,0.014503]
[1771029246308,0.21419527,68995.0,68986.0,0.014503]
[1771029246512,0.19969427,68993.0,68986.0,0.014503]
[1771029246710,0.19969427,68993.0,68982.0,0.15956]
[1771029247012,0.014503,68989.0,68979.0,0.029064]
[1771029247209,0.19969427,68986.0,68977.0,0.01456]
[1771029247514,0.014504,68985.0,68977.0,0.014505]
[1771029247806,0.01456,68984.0,68977.0,0.014505]
[1771029249115,0.014504,68981.0,68972.0,0.014506]
[1771029249411,0.01456,68980.0,68974.0,0.014506]
[1771029249607,0.01456,68979.0,68970.0,0.01456]
[1771029249812,0.145,68983.0,68978.0,0.014505]
[1771029250008,0.01456,68982.0,68976.0,0.014505]
[1771029250206,0.01456,68982.0,68973.0,0.014506]
[1771029250407,0.19969427,68984.0,68977.0,0.014505]
[1771029250610,0.01456,68983.0,68977.0,0.014505]
[1771029250812,0.19969427,68984.0,68975.0,0.014505]
[1771029251006,0.01456,68983.0,68978.0,0.014505]
[1771029251212,0.19969427,68984.0,68974.0,0.014506]
[1771029251414,0.01456,68983.0,68977.0,0.014505]
[1771029251610,0.01456,68983.0,68974.0,0.014506]
[1771029251803,0.01456,68983.0,68977.0,0.014505]
[1771029252004,0.01456,68983.0,68975.0,0.014505]
[1771029252305,0.002,68982.0,68975.0,0.014505]
[1771029252812,0.01856,68983.0,68977.0,0.014505]
[1771029253011,0.004,68983.0,68977.0,0.014505]
[1771029253214,0.01456,68982.0,68978.0,0.014505]
[1771029253408,0.01756,68982.0,68978.0,0.014505]
[1771029253914,0.01456,68982.0,68978.0,0.014505]
[1771029254509,0.01456,68982.0,68980.0,0.014504]
[1771029255508,0.0724464,68986.0,68980.0,0.014504]
[1771029255708,0.0724464,68986.0,68981.0,0.014504]
[1771029255910,0.1596,68985.0,68981.0,0.014504]
[1771029256109,0.1596,68985.0,68984.0,0.014504]
[1771029256410,0.01456,68985.0,68984.0,0.014504]
[1771029256616,0.0580087,68984.0,68982.0,0.014504]
[1771029257717,0.0580087,68984.0,68980.0,0.014504]
[1771029257918,0.0580087,68984.0,68983.0,0.014504]
[1771029258620,0.0610087,68984.0,68980.0,0.014504]
[1771029258920,0.0610087,68984.0,68977.0,0.014505]
[1771029259121,0.0580087,68984.0,68978.0,0.014505]
[1771029259322,0.0610087,68984.0,68978.0,0.014505]
[1771029259516,0.0610087,68984.0,68979.0,0.014505]
[1771029259819,0.0600087,68984.0,68979.0,0.014505]
[1771029260014,0.01456,68983.0,68979.0,0.014505]
[1771029261120,0.01456,68983.0,68979.0,0.02901]
[1771029261322,0.01456,68982.0,68981.0,0.014504]
[1771029261517,0.01456,68982.0,68980.0,0.014504]
[1771029262422,0.01556,68982.0,68980.0,0.014504]
[1771029262720,0.01556,68982.0,68978.0,0.014505]
[1771029262915,0.01556,68982.0,68979.0,0.014504]
[1771029263118,0.01556,68982.0,68977.0,0.014505]
[1771029263322,0.01556,68982.0,68978.0,0.014505]
[1771029264420,0.01556,68982.0,68979.0,0.014505]
[1771029264824,0.01456,68982.0,68979.0,0.016505]
[1771029265322,0.01456,68982.0,68979.0,0.014505]
[1771029265932,0.01456,68982.0,68974.0,0.029066]
[1771029266116,0.01456,68982.0,68975.0,0.014505]
[1771029266422,0.01456,68982.0,68976.0,0.014505]
[1771029267727,0.0580087,68984.0,68976.0,0.014505]
[1771029267925,0.01456,68983.0,68976.0,0.014505]
[1771029268127,0.01456,68983.0,68977.0,0.014505]
[1771029268726,0.01456,68983.0,68974.0,0.01856]
[1771029268727,0.01456,68983.0,68974.0,0.01456]
[1771029268927,0.21419827,68982.0,68974.0,0.01456]
[1771029269224,0.21419827,68982.0,68971.0,0.01456]
[1771029269430,0.19969427,68982.0,68975.0,0.014505]
[1771029269625,0.19969427,68982.0,68975.0,0.02901]
[1771029269819,0.029064,68983.0,68977.0,0.014505]
[1771029269820,0.01456,68983.0,68977.0,0.014505]
[1771029270026,0.21425427,68983.0,68978.0,0.014505]
[1771029270527,0.21425427,68983.0,68977.0,0.014505]
[1771029271628,0.21425427,68983.0,68978.0,0.014505]
[1771029272228,0.21425427,68983.0,68977.0,0.014505]
[1771029272430,0.21425427,68983.0,68971.0,0.01456]
[1771029272727,0.21425427,68983.0,68975.0,0.014505]
[1771029272928,0.21425427,68983.0,68974.0,0.014506]
[1771029273126,0.21425427,68983.0,68977.0,0.014505]
[1771029273434,0.21425427,68983.0,68971.0,0.01456]
[1771029273928,0.21425427,68983.0,68976.0,0.014505]
[1771029274521,0.21425427,68983.0,68977.0,0.002]
[1771029274723,0.21425427,68983.0,68978.0,0.014505]
[1771029274939,0.21425427,68983.0,68976.0,0.015505]
[1771029275228,0.21425427,68983.0,68978.0,0.014505]
[1771029275429,0.21425427,68983.0,68975.0,0.014505]
[1771029275628,0.01456,68983.0,68979.0,0.014504]
[1771029275830,0.01456,68983.0,68982.0,0.014504]
[1771029276022,0.014502,68991.0,68983.0,0.014504]
[1771029276225,0.1596,68990.0,68983.0,0.014504]
[1771029276525,0.07248057,68984.0,68983.0,0.014504]
[1771029276727,0.02299952,68984.0,68983.0,0.014504]
[1771029277028,0.01456,68984.0,68983.0,0.014504]
[1771029277329,0.01456,68984.0,68981.0,0.014504]
[1771029277532,0.08704057,68984.0,68983.0,0.014504]
[1771029278428,5.7e-07,68984.0,68983.0,0.014504]
[1771029278616,0.14504,68990.0,68982.0,0.014504]
[1771029278822,0.01456,68989.0,68983.0,0.014504]
[1771029279119,0.07248058,68984.0,68983.0,0.014504]
[1771029279327,0.07748058,68984.0,68983.0,0.014504]
[1771029280723,0.07248058,68984.0,68983.0,0.014504]
[1771029281423,0.07748058,68984.0,68983.0,0.014504]
[1771029284832,0.01456,68989.0,68984.0,0.014504]
[1771029285226,0.05797657,68984.0,68982.0,0.014504]
[1771029285628,0.05797657,68984.0,68983.0,0.014504]
[1771029287531,0.06097657,68984.0,68983.0,0.014504]
[1771029288034,0.06197657,68984.0,68983.0,0.014504]
[1771029292239,0.06197657,68984.0,68982.0,0.014504]
[1771029292537,0.06197657,68984.0,68981.0,0.014504]
[1771029292731,0.06197657,68984.0,68982.0,0.014504]
[1771029292932,0.06197657,68984.0,68981.0,0.014504]
[1771029293638,0.06197657,68984.0,68982.0,0.014504]
[1771029294140,0.13545725,68984.0,68982.0,0.014504]
[1771029294732,0.13645725,68984.0,68982.0,0.014504]
[1771029295439,0.05897657,68984.0,68982.0,0.014504]
[1771029295641,0.13645725,68984.0,68982.0,0.014504]
[1771029297439,0.05897657,68984.0,68983.0,0.014504]
[1771029297835,0.05897657,68984.0,68982.0,0.014504]
[1771029299133,0.05897657,68984.0,68981.0,0.014504]
[1771029300149,0.05797657,68984.0,68981.0,0.014504]
[1771029300441,0.05897657,68984.0,68981.0,0.014504]
[1771029300742,0.05797657,68984.0,68981.0,0.014504]
[1771029302036,0.05897657,68984.0,68979.0,0.01456]
[1771029302739,0.21863174,68980.0,68972.0,0.6263243]
[1771029302946,0.24769674,68980.0,68972.0,0.39562297]
[1771029303133,0.06894851,68976.0,68966.0,0.014507]
[1771029303335,0.06894851,68976.0,68967.0,0.01456]
[1771029303336,0.08350851,68976.0,68967.0,0.01456]
[1771029303639,0.09198668,68975.0,68967.0,0.01456]
[1771029303935,0.014506,68973.0,68967.0,0.01456]
[1771029304140,0.07248257,68974.0,68967.0,0.01456]
[1771029304336,0.14996325,68974.0,68967.0,0.01456]
[1771029304538,0.14996325,68974.0,68965.0,0.26135464]
[1771029304539,0.014506,68972.0,68965.0,0.26135464]
[1771029305139,0.014507,68969.0,68965.0,0.26135464]
[1771029305340,0.014507,68968.0,68963.0,0.00420546]
[1771029305547,0.07253657,68967.0,68957.0,0.01456]
[1771029305842,0.00042868,68965.0,68957.0,0.01413132]
[1771029306043,0.00042868,68965.0,68955.0,0.02907]
[1771029306542,0.014508,68964.0,68955.0,0.01456]
[1771029306745,0.01456,68963.0,68955.0,0.01456]
[1771029306945,0.014509,68959.0,68953.0,0.01456]
[1771029307141,0.014509,68961.0,68953.0,0.01456]
[1771029307348,0.014509,68960.0,68953.0,0.01456]
[1771029307645,0.029069,68959.0,68950.0,0.174111]
[1771029309237,0.01456,68959.0,68951.0,0.01451]
[1771029310843,0.01456,68959.0,68950.0,0.174111]
[1771029312046,0.029069,68959.0,68950.0,0.174111]
[1771029312247,0.00011358,68958.0,68945.0,0.014512]
[1771029312442,0.00011358,68958.0,68949.0,0.014511]
[1771029312845,0.00011358,68958.0,68951.0,0.22571416]
[1771029313048,0.01456,68960.0,68956.0,0.014509]
[1771029313250,0.014507,68970.0,68960.0,0.014508]
[1771029313445,0.07251705,68963.0,68960.0,0.01456]
[1771029313746,0.01456,68964.0,68957.0,0.029069]
[1771029313937,0.07250265,68963.0,68957.0,0.029069]
[1771029314142,0.07250265,68963.0,68957.0,0.01456]
[1771029314445,0.07250265,68963.0,68954.0,0.01451]
[1771029314651,0.07250265,68963.0,68955.0,0.01451]
[1771029315350,0.07250265,68963.0,68959.0,0.014509]
[1771029315542,0.01456,68963.0,68960.0,0.014508]
[1771029315750,0.01456,68964.0,68960.0,0.014508]
[1771029316050,0.0292505,68963.0,68960.0,0.014508]
[1771029316251,0.14508,68968.0,68960.0,0.014508]
[1771029316551,0.04154942,68963.0,68960.0,0.014508]
[1771029317047,0.04154942,68963.0,68959.0,0.014509]
[1771029317659,0.04154942,68963.0,68960.0,0.014509]
[1771029317952,0.04154942,68963.0,68959.0,0.014509]
[1771029318145,0.04154942,68963.0,68960.0,0.014509]
[1771029319050,0.03954942,68963.0,68960.0,0.014509]
[1771029319356,0.04054942,68963.0,68960.0,0.014509]
[1771029319654,0.03954942,68963.0,68960.0,0.014509]
[1771029319849,0.04054942,68963.0,68959.0,0.014509]
[1771029320653,0.04054942,68963.0,68959.0,0.029018]
[1771029320848,0.04054942,68963.0,68962.0,0.014508]
[1771029321053,0.14508,68970.0,68963.0,0.014508]
[1771029321246,0.01456,68969.0,68964.0,0.014508]
[1771029321447,9.9e-07,68963.0,68961.0,0.25478216]
[1771029321648,0.07249242,68973.0,68972.0,0.014506]
[1771029322156,0.07249242,68973.0,68970.0,0.014506]
[1771029322658,0.07249242,68973.0,68971.0,0.014506]
[1771029322958,0.07249242,68973.0,68969.0,0.014507]
[1771029323256,0.07449242,68973.0,68969.0,0.014507]
[1771029323656,0.07249242,68973.0,68969.0,0.029014]
[1771029323856,0.07449242,68973.0,68969.0,0.029014]
[1771029324253,0.07449242,68973.0,68969.0,0.014507]
[1771029324457,0.07449242,68973.0,68969.0,0.029014]
[1771029324755,0.07449242,68973.0,68969.0,0.014507]
[1771029325354,0.07549242,68973.0,68970.0,0.014507]
[1771029326746,0.07549242,68973.0,68971.0,0.014506]
[1771029326946,0.07249242,68973.0,68971.0,0.014506]
[1771029327151,0.07549242,68973.0,68971.0,0.014506]
[1771029328153,0.01456,69004.0,68988.0,0.24021716]
[1771029328454,5e-07,68995.0,68994.0,0.014501]
[1771029328648,5.95e-05,69004.0,69001.0,0.0145]
[1771029328861,0.05796355,69001.0,68999.0,0.0145]
[1771029329056,0.05796355,69001.0,69000.0,0.0145]
[1771029329251,0.07252355,69001.0,69000.0,0.0145]
[1771029330164,0.07552355,69001.0,69000.0,0.0145]
[1771029330860,0.06096355,69001.0,69000.0,0.0145]
[1771029331057,0.07552355,69001.0,68999.0,0.0145]
[1771029331263,0.07552355,69001.0,68997.0,0.014501]
[1771029331856,0.06096355,69001.0,68997.0,0.014501]
[1771029332163,0.05796355,69001.0,69000.0,0.0145]
[1771029332362,0.07252355,69001.0,69000.0,0.0145]
[1771029332666,0.07252355,69001.0,68997.0,0.014501]
[1771029333666,0.07352355,69001.0,68997.0,0.014501]
[1771029334162,0.08897202,69000.0,68991.0,0.01456]
[1771029334466,0.08897202,69000.0,68993.0,0.014502]
[1771029334965,0.07252355,69001.0,68997.0,0.002]
[1771029335357,0.07252355,69001.0,68993.0,0.014502]
[1771029335558,0.07252355,69001.0,68994.0,0.014501]
[1771029335864,0.01456,69000.0,68994.0,0.014501]
[1771029336059,0.01456,69000.0,68991.0,0.01456]
[1771029336367,0.10440715,69000.0,68989.0,0.01456]
[1771029336663,0.10440715,69000.0,68994.0,0.002]
[1771029336864,0.10440715,69000.0,68991.0,0.014502]
[1771029337065,0.10440715,69000.0,68993.0,0.014502]
[1771029337753,0.01481021,69005.0,68994.0,0.014501]
[1771029337958,0.07246272,69001.0,68994.0,0.014501]
[1771029338262,0.07246272,69001.0,68995.0,0.014501]
[1771029338461,0.01456,69000.0,68995.0,0.014501]
[1771029338663,0.01456,68999.0,68995.0,0.014501]
[1771029339864,0.01456,68999.0,68995.0,0.015501]
[1771029340565,0.01456,68999.0,68995.0,0.030002]
[1771029340970,0.01456,68999.0,68995.0,0.015501]
[1771029341160,0.01456,68999.0,68994.0,0.014501]
[1771029341667,0.01456,68999.0,68995.0,0.014501]
[1771029343064,0.01456,68999.0,68994.0,0.014501]
[1771029343366,0.01456,68999.0,68998.0,0.014501]
[1771029343567,0.14504,69006.0,69000.0,0.0145]
[1771029343765,0.01456,69005.0,69000.0,0.0145]
[1771029343967,0.07246272,69001.0,68998.0,0.014501]
[1771029344169,0.08702272,69001.0,68999.0,0.0145]
[1771029344562,0.014498,69009.0,69000.0,0.0145]
[1771029344764,0.07246272,69001.0,69000.0,0.0145]
[1771029344966,0.08702272,69001.0,69000.0,0.0145]
[1771029345566,0.07242244,69001.0,69000.0,0.0145]
[1771029346166,0.07342244,69001.0,69000.0,0.0145]
[1771029346670,0.07342244,69001.0,68999.0,0.0145]
[1771029346871,0.07342244,69001.0,68997.0,0.014501]
[1771029347965,0.07242244,69001.0,68997.0,0.014501]
[1771029348166,0.07242244,69001.0,68997.0,0.015501]
[1771029348866,0.07242244,69001.0,68999.0,0.0145]
[1771029349675,0.05786244,69001.0,68999.0,0.0145]
[1771029351573,0.05786244,69001.0,68996.0,0.014501]
[1771029352772,0.05786244,69001.0,68993.0,0.25836345]
[1771029352978,0.0145,69000.0,68990.0,0.014502]
[1771029353178,0.01456,68999.0,68990.0,0.014502]
[1771029353479,0.01456,68999.0,68991.0,0.014502]
[1771029353683,0.01456,68999.0,68993.0,0.014502]
[1771029353977,0.01456,68999.0,68993.0,0.029004]
[1771029354970,0.01456,68999.0,68993.0,0.030004]
[1771029355378,0.01456,68999.0,68993.0,0.015502]
[1771029355572,0.01456,68999.0,68995.0,0.014501]
[1771029355882,0.01456,68998.0,68995.0,0.014501]
[1771029356080,0.01456,68997.0,68995.0,0.014501]
[1771029356579,0.01456,68997.0,68994.0,0.014501]
[1771029357678,0.01456,68997.0,68994.0,0.015501]
[1771029358981,0.01456,68997.0,68994.0,0.001]
[1771029359981,0.01456,68997.0,68990.0,0.014502]
[1771029360381,0.01456,68997.0,68994.0,0.001]
[1771029361187,0.014502,68992.0,68978.0,0.014505]
[1771029361380,0.01456,68991.0,68981.0,0.029064]
[1771029361577,0.014504,68984.0,68975.0,0.24714967]
[1771029361788,0.01303471,68982.0,68971.0,0.14549929]
[1771029361978,0.05786244,68977.0,68969.0,0.03627716]
[1771029362280,0.05786244,68977.0,68969.0,0.05078416]
[1771029362281,0.01456,68976.0,68969.0,0.05078416]
[1771029362484,0.01456,68976.0,68972.0,0.014506]
[1771029362675,0.01456,68976.0,68973.0,0.014506]
[1771029363576,0.01456,68976.0,68972.0,0.014506]
[1771029364577,0.01656,68976.0,68972.0,0.014506]
[1771029365788,0.01656,68976.0,68971.0,0.014506]
[1771029367286,0.01756,68976.0,68971.0,0.014506]
[1771029367877,0.01656,68976.0,68971.0,0.014506]
[1771029368980,0.01656,68976.0,68970.0,0.014506]
[1771029369497,0.01656,68976.0,68971.0,0.014506]
[1771029369893,0.01656,68976.0,68967.0,0.014507]
[1771029370283,0.01456,68976.0,68967.0,0.014507]
[1771029370593,0.01856,68976.0,68969.0,0.014507]
[1771029371093,0.01656,68976.0,68970.0,0.014507]
[1771029372091,0.01756,68976.0,68970.0,0.014507]
[1771029372595,0.01505386,68976.0,68970.0,0.014507]
[1771029373286,0.01505386,68976.0,68969.0,0.014507]
[1771029373492,0.01505386,68976.0,68970.0,0.014506]
[1771029375695,0.014505,68980.0,68973.0,0.23872451]
[1771029375696,0.01456,68980.0,68973.0,0.23872451]
[1771029375897,0.07250729,68977.0,68964.0,0.014508]
[1771029376196,0.07250729,68977.0,68955.0,0.14631189]
[1771029376197,0.014508,68966.0,68956.0,0.014509]
[1771029376394,0.01456,68966.0,68958.0,0.014509]
[1771029376592,0.01456,68966.0,68954.0,0.01451]
[1771029376791,0.01456,68966.0,68953.0,0.25324051]
[1771029376792,0.014508,68965.0,68955.0,0.02907]
[1771029377192,0.014508,68965.0,68955.0,0.01451]
[1771029377388,0.014508,68964.0,68956.0,0.003]
[1771029377594,0.01456,68963.0,68956.0,0.003]
[1771029377795,0.01456,68963.0,68955.0,0.01451]
[1771029378594,0.01456,68963.0,68954.0,0.01451]
[1771029378800,0.014508,68961.0,68953.0,0.01456]
[1771029379000,0.07250729,68957.0,68950.0,0.014511]
[1771029379697,0.08706729,68957.0,68956.0,0.002]
[1771029380000,0.08706729,68957.0,68950.0,0.014511]
[1771029380196,0.08706729,68957.0,68950.0,0.017511]
[1771029380605,0.08706729,68957.0,68950.0,0.016511]
[1771029381297,0.08706729,68957.0,68950.0,0.031022]
[1771029381803,0.08706729,68957.0,68950.0,0.016511]
[1771029383410,0.08706729,68957.0,68950.0,0.002]
[1771029384408,0.08706729,68957.0,68950.0,0.016511]
[1771029384712,0.08706729,68957.0,68950.0,0.017511]
[1771029386108,0.08706729,68957.0,68949.0,0.014511]
[1771029386310,0.08706729,68957.0,68950.0,0.002]
[1771029386516,0.08706729,68957.0,68950.0,0.016511]
[1771029386817,0.08706729,68957.0,68950.0,0.002]
[1771029387115,0.08706729,68957.0,68950.0,0.014511]
[1771029387915,0.08706729,68957.0,68951.0,0.014511]
[1771029388619,0.08706729,68957.0,68950.0,0.016511]
[1771029388816,0.04643753,68954.0,68945.0,0.01456]
[1771029389116,0.01456,68953.0,68945.0,0.029072]
[1771029389316,0.01456,68953.0,68951.0,0.001]
[1771029389514,0.01456,68953.0,68945.0,0.029072]
[1771029390116,0.01456,68953.0,68945.0,0.032072]
[1771029390922,0.01456,68953.0,68945.0,0.031072]
[1771029392422,0.01456,68953.0,68945.0,0.016512]
[1771029394318,0.01456,68952.0,68945.0,0.016512]
[1771029395316,0.01456,68952.0,68945.0,0.014512]
[1771029395516,0.01556,68952.0,68945.0,0.014512]
[1771029396319,0.01556,68952.0,68944.0,0.014512]
[1771029396523,0.01556,68952.0,68945.0,0.014512]
[1771029397222,0.01556,68952.0,68948.0,0.014511]
[1771029397422,0.01456,68951.0,68947.0,0.014511]
[1771029398726,0.01656,68951.0,68947.0,0.014511]
[1771029403528,0.01656,68951.0,68948.0,0.014511]
[1771029404630,0.01456,68951.0,68948.0,0.014511]
[1771029404828,0.01556,68951.0,68948.0,0.014511]
[1771029405320,0.01656,68951.0,68948.0,0.014511]
[1771029405522,0.01656,68951.0,68949.0,0.014511]
[1771029406725,0.01456,68950.0,68949.0,0.014511]
[1771029408830,0.01556,68950.0,68949.0,0.014511]
[1771029409835,0.01556,68950.0,68949.0,0.012511]
[1771029410632,0.14512,68955.0,68952.0,0.01451]
[1771029410839,0.01456,68955.0,68951.0,0.23441714]
[1771029411136,0.01456,68955.0,68952.0,0.01451]
[1771029411637,0.07250729,68957.0,68950.0,0.029022]
[1771029411838,0.07250729,68957.0,68947.0,0.24668405]
[1771029411839,0.01456,68955.0,68947.0,0.01456]
[1771029412038,0.01456,68955.0,68947.0,0.029071]
[1771029412232,0.01451,68953.0,68945.0,0.01456]
[1771029412428,0.01456,68955.0,68945.0,0.01456]
[1771029412635,0.02907,68955.0,68946.0,0.014512]
[1771029412836,0.01456,68955.0,68946.0,0.014512]
[1771029413433,0.01456,68955.0,68946.0,0.014511]
[1771029414036,0.02907,68955.0,68946.0,0.014511]
[1771029414434,0.02907,68955.0,68947.0,0.003]
[1771029414941,0.04358,68955.0,68946.0,0.003]
[1771029415440,0.04358,68955.0,68947.0,0.002]
[1771029415441,0.02907,68955.0,68947.0,0.002]
[1771029416035,0.02907,68955.0,68946.0,0.017512]
[1771029417342,0.01456,68955.0,68947.0,0.014511]
[1771029417538,0.01456,68955.0,68951.0,0.01451]
[1771029417842,0.01456,68954.0,68951.0,0.01451]
[1771029418234,0.07250729,68957.0,68951.0,0.01451]
[1771029418440,0.01456,68956.0,68951.0,0.01451]
[1771029419046,0.01456,68956.0,68951.0,0.02902]
[1771029419243,0.01456,68956.0,68951.0,0.01551]
[1771029419445,0.01456,68956.0,68952.0,0.01451]
[1771029419844,0.01456,68956.0,68951.0,0.015511]
[1771029420039,0.01456,68955.0,68953.0,0.01451]
[1771029420245,0.01456,68955.0,68952.0,0.01451]
[1771029420741,0.14512,68960.0,68951.0,0.001]
[1771029421047,0.014508,68963.0,68956.0,0.15698517]
[1771029421246,0.01456,68962.0,68956.0,0.08447516]
[1771029421439,0.01456,68962.0,68954.0,0.01451]
[1771029421640,0.01456,68962.0,68952.0,0.01451]
[1771029421641,0.01456,68962.0,68953.0,0.16610993]
[1771029421840,0.01456,68962.0,68953.0,0.09359698]
[1771029422142,0.014508,68964.0,68953.0,0.03564382]
[1771029422342,3.4e-07,68953.0,68951.0,0.23861994]
[1771029422542,0.014508,68964.0,68955.0,0.01451]
[1771029422543,0.01456,68960.0,68955.0,0.01451]
[1771029422748,0.01456,68960.0,68952.0,0.02907]
[1771029422943,0.01456,68960.0,68954.0,0.01451]
[1771029423144,0.01456,68960.0,68955.0,0.01451]
[1771029423347,0.01456,68961.0,68955.0,0.01451]
[1771029423653,0.22789204,68986.0,68967.0,0.22410994]
[1771029423844,0.01456,68984.0,68979.0,0.014505]
[1771029424040,0.00664503,68983.0,68978.0,0.014505]
[1771029424244,0.01456,68983.0,68977.0,0.014505]
[1771029424441,0.01456,68983.0,68978.0,0.014505]
[1771029424648,0.01456,68984.0,68980.0,0.014504]
[1771029424847,0.01456,68984.0,68979.0,0.014505]
[1771029425048,0.07248171,68982.0,68979.0,0.014505]
[1771029425751,0.07248171,68982.0,68981.0,0.014504]
[1771029425952,0.14512,68989.0,68983.0,0.014504]
[1771029426259,6.8e-07,68982.0,68981.0,0.23861394]
[1771029426553,6.8e-07,68991.0,68986.0,0.014503]
[1771029426743,6.8e-07,68991.0,68987.0,0.014503]
[1771029427451,0.15269735,69023.0,68987.0,0.014503]
[1771029427452,0.014499,69004.0,68994.0,0.014501]
[1771029427645,0.014499,69004.0,68990.0,0.014502]
[1771029427646,0.02906,69003.0,68993.0,0.014502]
[1771029427846,0.07246597,68998.0,68993.0,0.014502]
[1771029428548,0.07246597,68998.0,68994.0,0.01]
[1771029428953,0.07246597,68998.0,68993.0,0.014502]
[1771029430551,0.07446597,68998.0,68993.0,0.014502]
[1771029430948,0.07246597,68998.0,68990.0,0.01456]
[1771029431153,0.08896697,68998.0,68990.0,0.01456]
[1771029431460,0.014502,68992.0,68984.0,0.01456]
[1771029431649,0.014502,68990.0,68984.0,0.01456]
[1771029431849,0.01456,68992.0,68982.0,0.01456]
[1771029432057,0.014502,68991.0,68980.0,0.014504]
[1771029432251,0.014502,68991.0,68980.0,0.029064]
[1771029432853,0.014503,68988.0,68980.0,0.01456]
[1771029433157,0.029063,68988.0,68980.0,0.01456]
[1771029433358,0.01456,68988.0,68980.0,0.01456]
[1771029433558,0.01456,68988.0,68981.0,0.014504]
[1771029433860,0.01456,68988.0,68984.0,0.002]
[1771029434357,0.01456,68988.0,68980.0,0.01756]
[1771029434556,0.01456,68988.0,68980.0,0.032064]
[1771029434856,0.01456,68988.0,68984.0,0.002]
[1771029435959,0.01456,68988.0,68977.0,0.014505]
[1771029436257,0.24245204,68988.0,68979.0,0.014505]
[1771029436452,0.014503,68986.0,68980.0,0.004]
[1771029436653,0.22789204,68984.0,68972.0,0.014506]
[1771029436857,0.01456,68983.0,68974.0,0.014506]
[1771029437058,0.01456,68983.0,68977.0,0.005]
[1771029437260,0.029064,68983.0,68974.0,0.014506]
[1771029437860,0.014504,68982.0,68974.0,0.014506]
[1771029438254,0.014504,68982.0,68977.0,0.003]
[1771029438456,0.014504,68981.0,68972.0,0.014506]
[1771029438656,0.01456,68980.0,68973.0,0.014506]
[1771029439559,0.01456,68980.0,68974.0,0.014506]
[1771029439762,0.01456,68980.0,68977.0,0.014505]
[1771029440058,0.01456,68980.0,68978.0,0.014505]
[1771029440265,0.004,68980.0,68979.0,0.014505]
[1771029440464,0.01456,68982.0,68977.0,0.014505]
[1771029441062,0.006,68980.0,68977.0,0.014505]
[1771029441256,0.006,68980.0,68976.0,0.014505]
[1771029441561,0.02056,68982.0,68976.0,0.014505]
[1771029442862,0.003,68980.0,68978.0,0.014505]
[1771029443460,0.01756,68982.0,68978.0,0.014505]
[1771029443663,0.01756,68982.0,68979.0,0.014505]